[Event "*** SCC Grand Prix: Titled Tuesday Blitz"]
[Site "Chess.com"]
[Date "2020.06.09"]
[Round "8"]
[White "SiddharthGMJagadeesh"]
[Black "Natalya_Buksa"]
[Result "1/2-1/2"]
[WhiteElo "2443"]
[BlackElo "2566"]
[TimeControl "180+1"]
[EndTime "10:38:14 PDT"]
[Termination "Game drawn - insufficient material"]

1. d4 {[%clk 0:03:00.9]} 1... d5 {[%clk 0:02:59.8]} 2. c4 {[%clk 0:03:00.1]}
2... e6 {[%clk 0:03:00.3]} 3. Nf3 {[%clk 0:02:59.6]} 3... Nf6 {[%clk 0:03:00.8]}
4. g3 {[%clk 0:02:58.6]} 4... Bb4+ {[%clk 0:03:01]} 5. Bd2 {[%clk 0:02:58.3]}
5... Be7 {[%clk 0:03:01.6]} 6. Bg2 {[%clk 0:02:58.7]} 6... O-O {[%clk
0:03:02.3]} 7. O-O {[%clk 0:02:58.9]} 7... c6 {[%clk 0:03:02.9]} 8. Qc2 {[%clk
0:02:58.7]} 8... Nbd7 {[%clk 0:03:03.4]} 9. b4 {[%clk 0:02:59.2]} 9... Ne4
{[%clk 0:02:56.8]} 10. Be1 {[%clk 0:02:58.7]} 10... f5 {[%clk 0:02:47.4]} 11. e3
{[%clk 0:02:58.6]} 11... g5 {[%clk 0:02:44]} 12. a4 {[%clk 0:02:58.2]} 12... g4
{[%clk 0:02:44.1]} 13. Nfd2 {[%clk 0:02:57.1]} 13... Bxb4 {[%clk 0:02:31.5]} 14.
Nxe4 {[%clk 0:02:54.6]} 14... Bxe1 {[%clk 0:02:31.1]} 15. Nd6 {[%clk 0:02:48.5]}
15... Ba5 {[%clk 0:02:22.9]} 16. cxd5 {[%clk 0:02:31.3]} 16... cxd5 {[%clk
0:02:20.2]} 17. Nc3 {[%clk 0:02:27.5]} 17... Qc7 {[%clk 0:02:14.3]} 18. Ndb5
{[%clk 0:02:27.1]} 18... Qc6 {[%clk 0:02:09.2]} 19. Qb3 {[%clk 0:02:20.2]} 19...
Nb6 {[%clk 0:01:55.3]} 20. Rfc1 {[%clk 0:02:17]} 20... Nc4 {[%clk 0:01:42.9]}
21. Na3 {[%clk 0:01:49.9]} 21... Qb6 {[%clk 0:01:13.6]} 22. Qa2 {[%clk
0:01:15.7]} 22... Nxa3 {[%clk 0:01:05.2]} 23. Qxa3 {[%clk 0:01:16.6]} 23... Bb4
{[%clk 0:00:59.7]} 24. Qb3 {[%clk 0:01:13.4]} 24... Bd7 {[%clk 0:00:53.9]} 25.
Ne2 {[%clk 0:00:45.9]} 25... Kh8 {[%clk 0:00:49.2]} 26. Rcb1 {[%clk 0:00:29.1]}
26... a5 {[%clk 0:00:49.1]} 27. Nf4 {[%clk 0:00:28.7]} 27... Rac8 {[%clk
0:00:46.2]} 28. Nd3 {[%clk 0:00:28]} 28... Rc3 {[%clk 0:00:46.3]} 29. Qxc3
{[%clk 0:00:24.3]} 29... Bxc3 {[%clk 0:00:45.7]} 30. Rxb6 {[%clk 0:00:24.9]}
30... Bxa1 {[%clk 0:00:46.2]} 31. Nc5 {[%clk 0:00:25.8]} 31... Bc6 {[%clk
0:00:42]} 32. Nxe6 {[%clk 0:00:24.5]} 32... Re8 {[%clk 0:00:29.7]} 33. Nc5
{[%clk 0:00:22.6]} 33... Re7 {[%clk 0:00:29.6]} 34. Bf1 {[%clk 0:00:20.3]} 34...
Bc3 {[%clk 0:00:28.6]} 35. Bb5 {[%clk 0:00:20]} 35... Re8 {[%clk 0:00:15.8]} 36.
Bxc6 {[%clk 0:00:18.9]} 36... bxc6 {[%clk 0:00:16]} 37. Rxc6 {[%clk 0:00:19.8]}
37... Rb8 {[%clk 0:00:16.1]} 38. Nd7 {[%clk 0:00:16]} 38... Rb1+ {[%clk
0:00:16.2]} 39. Kg2 {[%clk 0:00:16.4]} 39... Be1 {[%clk 0:00:13.9]} 40. Rc2
{[%clk 0:00:15.7]} 40... Bb4 {[%clk 0:00:13.3]} 41. Nf6 {[%clk 0:00:14.1]} 41...
Ra1 {[%clk 0:00:13.6]} 42. Nxd5 {[%clk 0:00:13.7]} 42... Be1 {[%clk 0:00:13.6]}
43. Ne7 {[%clk 0:00:09.5]} 43... Rxa4 {[%clk 0:00:13.5]} 44. Nxf5 {[%clk
0:00:08.6]} 44... Ra1 {[%clk 0:00:13.8]} 45. d5 {[%clk 0:00:08.5]} 45... Kg8
{[%clk 0:00:13.6]} 46. d6 {[%clk 0:00:08.6]} 46... Rd1 {[%clk 0:00:12.6]} 47. e4
{[%clk 0:00:07.3]} 47... Kf7 {[%clk 0:00:12.8]} 48. e5 {[%clk 0:00:07.5]} 48...
Ke6 {[%clk 0:00:13.1]} 49. Ne3 {[%clk 0:00:07.8]} 49... Rd4 {[%clk 0:00:09.1]}
50. Re2 {[%clk 0:00:05]} 50... Bb4 {[%clk 0:00:08.8]} 51. Nc2 {[%clk 0:00:05.2]}
51... Rd3 {[%clk 0:00:07.8]} 52. Nxb4 {[%clk 0:00:04.8]} 52... axb4 {[%clk
0:00:08.7]} 53. Rb2 {[%clk 0:00:05.4]} 53... b3 {[%clk 0:00:08.7]} 54. h3 {[%clk
0:00:04.9]} 54... gxh3+ {[%clk 0:00:08.3]} 55. Kxh3 {[%clk 0:00:05.8]} 55...
Kxe5 {[%clk 0:00:09.2]} 56. d7 {[%clk 0:00:06.1]} 56... Rxd7 {[%clk 0:00:09.7]}
57. Rxb3 {[%clk 0:00:06.2]} 57... Kf5 {[%clk 0:00:10.2]} 58. Rb5+ {[%clk
0:00:06]} 58... Kf6 {[%clk 0:00:10.5]} 59. f4 {[%clk 0:00:06.4]} 59... Rd1
{[%clk 0:00:10.6]} 60. Kg4 {[%clk 0:00:06.6]} 60... Rh1 {[%clk 0:00:10.2]} 61.
Rb6+ {[%clk 0:00:06]} 61... Kg7 {[%clk 0:00:10.6]} 62. Kg5 {[%clk 0:00:06.3]}
62... h6+ {[%clk 0:00:10.7]} 63. Kf5 {[%clk 0:00:06.4]} 63... Rh5+ {[%clk
0:00:10.8]} 64. Ke4 {[%clk 0:00:06.9]} 64... Ra5 {[%clk 0:00:10.4]} 65. g4
{[%clk 0:00:06.9]} 65... Kh7 {[%clk 0:00:10.1]} 66. Rb7+ {[%clk 0:00:06.2]}
66... Kg6 {[%clk 0:00:10.2]} 67. Rb6+ {[%clk 0:00:06.3]} 67... Kg7 {[%clk
0:00:10.3]} 68. Re6 {[%clk 0:00:06.1]} 68... Ra4+ {[%clk 0:00:10.6]} 69. Kf5
{[%clk 0:00:06]} 69... Ra7 {[%clk 0:00:09.9]} 70. Re5 {[%clk 0:00:06.1]} 70...
Rf7+ {[%clk 0:00:09.5]} 71. Ke4 {[%clk 0:00:06]} 71... Ra7 {[%clk 0:00:10.1]}
72. Rd5 {[%clk 0:00:05.8]} 72... Re7+ {[%clk 0:00:09.2]} 73. Kd4 {[%clk
0:00:04.6]} 73... Re1 {[%clk 0:00:09]} 74. Re5 {[%clk 0:00:04.6]} 74... Rg1
{[%clk 0:00:08.9]} 75. Ke4 {[%clk 0:00:03.9]} 75... Rxg4 {[%clk 0:00:08.4]} 76.
Kf5 {[%clk 0:00:04.8]} 76... Rg1 {[%clk 0:00:08.3]} 77. Re7+ {[%clk 0:00:04.9]}
77... Kg8 {[%clk 0:00:08.3]} 78. Kf6 {[%clk 0:00:04.3]} 78... h5 {[%clk
0:00:06.3]} 79. f5 {[%clk 0:00:04.6]} 79... h4 {[%clk 0:00:06]} 80. Re8+ {[%clk
0:00:04.7]} 80... Kh7 {[%clk 0:00:06]} 81. Re4 {[%clk 0:00:04.6]} 81... h3
{[%clk 0:00:04.5]} 82. Rh4+ {[%clk 0:00:04.4]} 82... Kg8 {[%clk 0:00:05]} 83.
Rxh3 {[%clk 0:00:05.3]} 83... Ra1 {[%clk 0:00:05]} 84. Re3 {[%clk 0:00:05.2]}
84... Kf8 {[%clk 0:00:04.7]} 85. Re6 {[%clk 0:00:04.3]} 85... Rf1 {[%clk
0:00:02.3]} 86. Ra6 {[%clk 0:00:03.2]} 86... Kg8 {[%clk 0:00:02.6]} 87. Ra8+
{[%clk 0:00:03.3]} 87... Kh7 {[%clk 0:00:02.8]} 88. Ke6 {[%clk 0:00:03.8]} 88...
Re1+ {[%clk 0:00:02.9]} 89. Kf7 {[%clk 0:00:04]} 89... Rb1 {[%clk 0:00:03.5]}
90. f6 {[%clk 0:00:04]} 90... Rb7+ {[%clk 0:00:03.8]} 91. Kf8 {[%clk 0:00:04]}
91... Kg6 {[%clk 0:00:03.7]} 92. Ra6 {[%clk 0:00:03.3]} 92... Rf7+ {[%clk
0:00:04.1]} 93. Kg8 {[%clk 0:00:04.2]} 93... Rxf6 {[%clk 0:00:04.6]} 94. Rxf6+
{[%clk 0:00:05.1]} 94... Kxf6 {[%clk 0:00:05.5]} 1/2-1/2

[Event "*** SCC Grand Prix: Titled Tuesday Blitz"]
[Site "Chess.com"]
[Date "2020.06.09"]
[Round "8"]
[White "MoonlighT89"]
[Black "Evgeny81"]
[Result "0-1"]
[WhiteElo "2580"]
[BlackElo "2765"]
[TimeControl "180+1"]
[EndTime "10:38:53 PDT"]
[Termination "Evgeny81 won by resignation"]

1. e4 {[%clk 0:03:00.9]} 1... e6 {[%clk 0:02:59.8]} 2. d4 {[%clk 0:03:00.1]}
2... d5 {[%clk 0:03:00.3]} 3. Nc3 {[%clk 0:03:00.8]} 3... Nf6 {[%clk 0:02:59.4]}
4. Bg5 {[%clk 0:02:59.8]} 4... Bb4 {[%clk 0:02:58.9]} 5. e5 {[%clk 0:02:58.4]}
5... h6 {[%clk 0:02:58.1]} 6. Bd2 {[%clk 0:02:54.5]} 6... Bxc3 {[%clk
0:02:57.3]} 7. bxc3 {[%clk 0:02:55]} 7... Ne4 {[%clk 0:02:58]} 8. Qg4 {[%clk
0:02:55.2]} 8... Kf8 {[%clk 0:02:57.4]} 9. Bd3 {[%clk 0:02:54.4]} 9... Nxd2
{[%clk 0:02:57.1]} 10. Kxd2 {[%clk 0:02:55.1]} 10... c5 {[%clk 0:02:57.2]} 11.
dxc5 {[%clk 0:02:53.8]} 11... Nd7 {[%clk 0:02:50.1]} 12. Nf3 {[%clk 0:02:51.7]}
12... Nxc5 {[%clk 0:02:49.4]} 13. Rhb1 {[%clk 0:02:43.2]} 13... Bd7 {[%clk
0:02:44.7]} 14. a4 {[%clk 0:02:41.6]} 14... Rc8 {[%clk 0:02:39.9]} 15. a5 {[%clk
0:02:33.8]} 15... Qe7 {[%clk 0:02:25.7]} 16. Nd4 {[%clk 0:02:10.6]} 16... Qg5+
{[%clk 0:02:19.1]} 17. Qxg5 {[%clk 0:02:10.2]} 17... hxg5 {[%clk 0:02:20]} 18.
h3 {[%clk 0:02:10.5]} 18... Ke7 {[%clk 0:02:17.3]} 19. f3 {[%clk 0:02:07.4]}
19... Rc7 {[%clk 0:02:07]} 20. Bb5 {[%clk 0:02:00.6]} 20... a6 {[%clk
0:01:57.1]} 21. Bf1 {[%clk 0:01:39.4]} 21... Rhc8 {[%clk 0:01:51.7]} 22. Ra3
{[%clk 0:01:38.5]} 22... f6 {[%clk 0:01:38.8]} 23. exf6+ {[%clk 0:01:34.8]}
23... gxf6 {[%clk 0:01:37.3]} 24. c4 {[%clk 0:00:55.6]} 24... e5 {[%clk
0:01:15.6]} 25. Ne2 {[%clk 0:00:46.6]} 25... dxc4 {[%clk 0:01:03.5]} 26. Nc3
{[%clk 0:00:45.1]} 26... Be6 {[%clk 0:01:03.6]} 27. Rb4 {[%clk 0:00:41.2]} 27...
Nd7 {[%clk 0:00:50.2]} 28. Na4 {[%clk 0:00:36.5]} 28... Rd8 {[%clk 0:00:43.3]}
29. Ke3 {[%clk 0:00:31.5]} 29... f5 {[%clk 0:00:39.4]} 30. Rc3 {[%clk
0:00:26.8]} 30... Nf6 {[%clk 0:00:39.6]} 31. Nb6 {[%clk 0:00:23.7]} 31... Rd1
{[%clk 0:00:30.2]} 32. Be2 {[%clk 0:00:22.9]} 32... Ra1 {[%clk 0:00:27]} 33.
Bxc4 {[%clk 0:00:22.1]} 33... Rxa5 {[%clk 0:00:23.1]} 34. Rcb3 {[%clk 0:00:19]}
34... Bxc4 {[%clk 0:00:19.1]} 35. Rxc4 {[%clk 0:00:19.9]} 35... Rac5 {[%clk
0:00:15.1]} 36. Rxc5 {[%clk 0:00:17.6]} 36... Rxc5 {[%clk 0:00:16]} 37. c4
{[%clk 0:00:17.2]} 37... Ke6 {[%clk 0:00:15.2]} 38. Kd3 {[%clk 0:00:17]} 38...
Rc7 {[%clk 0:00:14.8]} 39. Na4 {[%clk 0:00:16.9]} 39... Nd7 {[%clk 0:00:14.5]}
40. Rb1 {[%clk 0:00:16.3]} 40... Kd6 {[%clk 0:00:14.4]} 41. Rd1 {[%clk
0:00:15.4]} 41... Nc5+ {[%clk 0:00:14.3]} 42. Nxc5 {[%clk 0:00:15.6]} 42... Kxc5
{[%clk 0:00:14.5]} 43. Kc3 {[%clk 0:00:16.4]} 43... Kc6 {[%clk 0:00:12.8]} 44.
Rd5 {[%clk 0:00:16.4]} 44... Re7 {[%clk 0:00:13]} 45. Rd8 {[%clk 0:00:16.7]}
45... a5 {[%clk 0:00:12]} 46. Rf8 {[%clk 0:00:15.9]} 46... f4 {[%clk 0:00:11.4]}
47. Rf6+ {[%clk 0:00:16]} 47... Kc5 {[%clk 0:00:11.2]} 48. Rg6 {[%clk
0:00:16.5]} 48... a4 {[%clk 0:00:10.4]} 49. Rxg5 {[%clk 0:00:17]} 49... b5
{[%clk 0:00:10.1]} 50. cxb5 {[%clk 0:00:16.2]} 50... Kxb5 {[%clk 0:00:10.7]} 51.
h4 {[%clk 0:00:15.4]} 51... Rc7+ {[%clk 0:00:10.6]} 52. Kb2 {[%clk 0:00:15.7]}
52... Rc5 {[%clk 0:00:10.4]} 53. h5 {[%clk 0:00:15.9]} 53... Kb4 {[%clk
0:00:10.7]} 54. Rg8 {[%clk 0:00:15.2]} 54... a3+ {[%clk 0:00:10.9]} 55. Kb1
{[%clk 0:00:15.6]} 55... Rc6 {[%clk 0:00:09.2]} 56. Re8 {[%clk 0:00:15.3]} 56...
Kb3 {[%clk 0:00:07]} 57. Rb8+ {[%clk 0:00:15.2]} 57... Kc3 {[%clk 0:00:07]} 58.
Rd8 {[%clk 0:00:13.6]} 58... Rh6 {[%clk 0:00:04.1]} 59. Ka2 {[%clk 0:00:13.8]}
59... Rxh5 {[%clk 0:00:03.9]} 60. Kxa3 {[%clk 0:00:14.4]} 60... Rg5 {[%clk
0:00:04.3]} 61. Rd5 {[%clk 0:00:10]} 61... Kc4 {[%clk 0:00:04.2]} 62. Ra5 {[%clk
0:00:09.4]} 62... Kd4 {[%clk 0:00:04.3]} 63. Kb3 {[%clk 0:00:08.5]} 63... Ke3
{[%clk 0:00:04.1]} 64. Kc3 {[%clk 0:00:08.4]} 64... Kf2 {[%clk 0:00:03.3]} 65.
Kd3 {[%clk 0:00:08.4]} 65... Kxg2 {[%clk 0:00:02.8]} 66. Ke4 {[%clk 0:00:08.6]}
66... Kg3 {[%clk 0:00:02.5]} 67. Ra1 {[%clk 0:00:07.6]} 67... Rh5 {[%clk
0:00:02.3]} 68. Rg1+ {[%clk 0:00:06.2]} 68... Kf2 {[%clk 0:00:02.3]} 69. Ra1
{[%clk 0:00:06.7]} 69... Rg5 {[%clk 0:00:01.1]} 70. Ra2+ {[%clk 0:00:07.1]}
70... Kf1 {[%clk 0:00:01.5]} 71. Ra1+ {[%clk 0:00:07.3]} 71... Ke2 {[%clk
0:00:02.4]} 72. Ra2+ {[%clk 0:00:08.2]} 72... Kd1 {[%clk 0:00:03]} 73. Ra5
{[%clk 0:00:07.8]} 73... Kd2 {[%clk 0:00:03.9]} 74. Ra2+ {[%clk 0:00:06.6]}
74... Ke1 {[%clk 0:00:03.9]} 75. Ra5 {[%clk 0:00:06.8]} 75... Kf2 {[%clk
0:00:04.1]} 76. Ra2+ {[%clk 0:00:06.9]} 76... Kg3 {[%clk 0:00:04.4]} 77. Ra1
{[%clk 0:00:06.9]} 77... Rh5 {[%clk 0:00:04.3]} 78. Rg1+ {[%clk 0:00:07.5]}
78... Kf2 {[%clk 0:00:03.9]} 79. Ra1 {[%clk 0:00:07.5]} 79... Rh8 {[%clk
0:00:04.4]} 80. Ra2+ {[%clk 0:00:06.9]} 80... Kg3 {[%clk 0:00:04.6]} 81. Ra1
{[%clk 0:00:07.5]} 81... Re8 {[%clk 0:00:04.1]} 82. Rg1+ {[%clk 0:00:07.5]}
82... Kf2 {[%clk 0:00:04.4]} 83. Ra1 {[%clk 0:00:07.5]} 83... Rb8 {[%clk
0:00:04]} 84. Ra2+ {[%clk 0:00:07.6]} 84... Kg3 {[%clk 0:00:03.7]} 85. Ra3
{[%clk 0:00:07.2]} 85... Rb5 {[%clk 0:00:03.5]} 86. Rc3 {[%clk 0:00:06.4]} 86...
Ra5 {[%clk 0:00:03.5]} 87. Rb3 {[%clk 0:00:06.7]} 87... Rc5 {[%clk 0:00:03.4]}
88. Ra3 {[%clk 0:00:06.9]} 88... Kh4 {[%clk 0:00:03.2]} 89. Ra1 {[%clk
0:00:05.1]} 89... Kg3 {[%clk 0:00:03.2]} 90. Ra3 {[%clk 0:00:04.8]} 90... Rb5
{[%clk 0:00:02.9]} 91. Rc3 {[%clk 0:00:04.6]} 91... Rb2 {[%clk 0:00:02.1]} 92.
Kxe5 {[%clk 0:00:03.2]} 92... Rf2 {[%clk 0:00:02.2]} 93. Ke4 {[%clk 0:00:03.4]}
93... Re2+ {[%clk 0:00:02.6]} 94. Kd4 {[%clk 0:00:03.9]} 94... Re8 {[%clk
0:00:02.3]} 95. Kd5 {[%clk 0:00:02.5]} 95... Kf2 {[%clk 0:00:02.3]} 96. Kd4
{[%clk 0:00:02.8]} 96... Re3 {[%clk 0:00:02.3]} 97. Rc1 {[%clk 0:00:02.8]} 97...
Kxf3 {[%clk 0:00:02.4]} 98. Rf1+ {[%clk 0:00:03.4]} 98... Kg4 {[%clk 0:00:02.7]}
99. Rg1+ {[%clk 0:00:04.1]} 99... Kf3 {[%clk 0:00:02.6]} 100. Rf1+ {[%clk
0:00:04.5]} 100... Kg3 {[%clk 0:00:03]} 101. Rg1+ {[%clk 0:00:05.4]} 101... Kf2
{[%clk 0:00:03.4]} 102. Rh1 {[%clk 0:00:05.3]} 102... Re8 {[%clk 0:00:03.2]}
103. Kd3 {[%clk 0:00:04.7]} 103... f3 {[%clk 0:00:03.3]} 104. Rh2+ {[%clk
0:00:04.2]} 104... Kg3 {[%clk 0:00:03.2]} 105. Ra2 {[%clk 0:00:04.7]} 105... f2
{[%clk 0:00:03.3]} 106. Ra1 {[%clk 0:00:05.1]} 106... Re1 {[%clk 0:00:02.6]} 0-1

[Event "*** SCC Grand Prix: Titled Tuesday Blitz"]
[Site "Chess.com"]
[Date "2020.06.09"]
[Round "9"]
[White "rynos0411"]
[Black "KamlaPasand"]
[Result "0-1"]
[WhiteElo "2370"]
[BlackElo "2226"]
[TimeControl "180+1"]
[EndTime "10:41:34 PDT"]
[Termination "KamlaPasand won by resignation"]

1. e4 {[%clk 0:03:00.9]} 1... c5 {[%clk 0:02:57.8]} 2. Nf3 {[%clk 0:03:00.8]}
2... d6 {[%clk 0:02:57.7]} 3. d4 {[%clk 0:03:00.7]} 3... cxd4 {[%clk 0:02:58.6]}
4. Nxd4 {[%clk 0:03:01.5]} 4... Nf6 {[%clk 0:02:59.4]} 5. Nc3 {[%clk 0:03:02]}
5... g6 {[%clk 0:02:59.7]} 6. Be3 {[%clk 0:03:01.5]} 6... Bg7 {[%clk 0:03:00.1]}
7. f3 {[%clk 0:03:02]} 7... O-O {[%clk 0:03:01]} 8. Qd2 {[%clk 0:03:02.4]} 8...
Nc6 {[%clk 0:03:01.5]} 9. O-O-O {[%clk 0:03:03]} 9... Nxd4 {[%clk 0:03:01.7]}
10. Bxd4 {[%clk 0:03:03.2]} 10... Be6 {[%clk 0:03:02.6]} 11. Kb1 {[%clk
0:03:03.4]} 11... Qc7 {[%clk 0:03:02.7]} 12. g4 {[%clk 0:03:01.4]} 12... Rfc8
{[%clk 0:03:03.1]} 13. h4 {[%clk 0:03:01.6]} 13... Qa5 {[%clk 0:03:03.5]} 14. h5
{[%clk 0:02:59.2]} 14... Rxc3 {[%clk 0:03:03.4]} 15. Qxc3 {[%clk 0:02:55]} 15...
Qxa2+ {[%clk 0:02:59]} 16. Kc1 {[%clk 0:02:55.3]} 16... Bh6+ {[%clk 0:02:59]}
17. Be3 {[%clk 0:02:54.2]} 17... Rc8 {[%clk 0:02:59.5]} 18. Qd4 {[%clk
0:02:30.6]} 18... Bb3 {[%clk 0:02:25.9]} 19. Bd3 {[%clk 0:02:25.1]} 19... e5
{[%clk 0:02:24.7]} 0-1

[Event "*** SCC Grand Prix: Titled Tuesday Blitz"]
[Site "Chess.com"]
[Date "2020.06.09"]
[Round "9"]
[White "Chuchofrio1"]
[Black "DanielTitichoca"]
[Result "0-1"]
[WhiteElo "2184"]
[BlackElo "2327"]
[TimeControl "180+1"]
[EndTime "10:42:29 PDT"]
[Termination "DanielTitichoca won by checkmate"]

1. d4 {[%clk 0:03:00.6]} 1... Nf6 {[%clk 0:02:59.7]} 2. c4 {[%clk 0:03:00.3]}
2... g6 {[%clk 0:03:00.6]} 3. Nc3 {[%clk 0:03:00.3]} 3... Bg7 {[%clk 0:03:01.5]}
4. e4 {[%clk 0:03:00.6]} 4... O-O {[%clk 0:03:02.4]} 5. f4 {[%clk 0:03:00.7]}
5... d6 {[%clk 0:03:03.3]} 6. Nf3 {[%clk 0:03:01]} 6... c5 {[%clk 0:03:03.3]} 7.
d5 {[%clk 0:03:01.4]} 7... e6 {[%clk 0:03:03.1]} 8. dxe6 {[%clk 0:03:00.9]} 8...
fxe6 {[%clk 0:02:57.2]} 9. Bd3 {[%clk 0:03:00]} 9... Nc6 {[%clk 0:02:57.7]} 10.
O-O {[%clk 0:03:00.2]} 10... Nd4 {[%clk 0:02:57.6]} 11. Ng5 {[%clk 0:02:59.1]}
11... h6 {[%clk 0:02:55.7]} 12. Nh3 {[%clk 0:02:54.2]} 12... Qe7 {[%clk
0:02:52.1]} 13. e5 {[%clk 0:02:54]} 13... dxe5 {[%clk 0:02:49.4]} 14. fxe5
{[%clk 0:02:53.9]} 14... Nd7 {[%clk 0:02:50.3]} 15. Bxg6 {[%clk 0:02:47.3]}
15... Nxe5 {[%clk 0:02:44]} 16. Rxf8+ {[%clk 0:02:26.7]} 16... Qxf8 {[%clk
0:02:43.1]} 17. Qh5 {[%clk 0:02:12.8]} 17... Bd7 {[%clk 0:02:42.4]} 18. Bf4
{[%clk 0:01:51.8]} 18... Nxg6 {[%clk 0:02:39.8]} 19. Qxg6 {[%clk 0:01:50.5]}
19... Bc6 {[%clk 0:02:40.7]} 20. Bxh6 {[%clk 0:01:40.1]} 20... Nf5 {[%clk
0:02:33.9]} 21. Qxe6+ {[%clk 0:01:35]} 21... Kh8 {[%clk 0:02:30.6]} 22. Bxg7+
{[%clk 0:01:14.9]} 22... Qxg7 {[%clk 0:02:31.5]} 23. Qxf5 {[%clk 0:01:12.9]}
23... Qxg2# {[%clk 0:02:30]} 0-1

[Event "*** SCC Grand Prix: Titled Tuesday Blitz"]
[Site "Chess.com"]
[Date "2020.06.09"]
[Round "9"]
[White "Raja3401"]
[Black "Indianlad"]
[Result "0-1"]
[WhiteElo "2813"]
[BlackElo "2985"]
[TimeControl "180+1"]
[EndTime "10:42:31 PDT"]
[Termination "Indianlad won by resignation"]

1. e4 {[%clk 0:03:00.9]} 1... c5 {[%clk 0:03:00.4]} 2. Nf3 {[%clk 0:03:01.3]}
2... e6 {[%clk 0:03:00.8]} 3. d4 {[%clk 0:03:01.4]} 3... cxd4 {[%clk 0:03:01.7]}
4. Nxd4 {[%clk 0:03:02.3]} 4... a6 {[%clk 0:03:02.2]} 5. Bd3 {[%clk 0:02:58.5]}
5... Nc6 {[%clk 0:02:57.4]} 6. Nxc6 {[%clk 0:02:57.3]} 6... dxc6 {[%clk
0:02:58.3]} 7. O-O {[%clk 0:02:56.6]} 7... e5 {[%clk 0:02:58.9]} 8. Nd2 {[%clk
0:02:54.6]} 8... Nf6 {[%clk 0:02:59]} 9. Nc4 {[%clk 0:02:54.3]} 9... Qc7 {[%clk
0:02:55.6]} 10. a4 {[%clk 0:02:54.1]} 10... Be6 {[%clk 0:02:45.2]} 11. Qe1
{[%clk 0:02:47.3]} 11... Bc5 {[%clk 0:02:28.7]} 12. b4 {[%clk 0:02:19.3]} 12...
Bd4 {[%clk 0:02:19.2]} 13. Ra3 {[%clk 0:02:17.7]} 13... O-O {[%clk 0:02:14.6]}
14. a5 {[%clk 0:02:10.3]} 14... Rad8 {[%clk 0:02:06.9]} 15. Be3 {[%clk
0:02:10.2]} 15... Bxe3 {[%clk 0:02:02.6]} 16. Qxe3 {[%clk 0:02:09.7]} 16... Rd4
{[%clk 0:02:03]} 17. f4 {[%clk 0:01:57]} 17... Bxc4 {[%clk 0:02:00]} 18. fxe5
{[%clk 0:01:53.2]} 18... Qxe5 {[%clk 0:01:51.6]} 19. Rf5 {[%clk 0:01:53.4]}
19... Qxh2+ {[%clk 0:01:50.3]} 20. Kxh2 {[%clk 0:01:50.6]} 20... Ng4+ {[%clk
0:01:50.6]} 21. Kg3 {[%clk 0:01:51.1]} 21... Nxe3 {[%clk 0:01:51.3]} 22. Rf3
{[%clk 0:01:51.4]} 22... Bxd3 {[%clk 0:01:51.6]} 0-1

[Event "*** SCC Grand Prix: Titled Tuesday Blitz"]
[Site "Chess.com"]
[Date "2020.06.09"]
[Round "9"]
[White "Igor_Lysyj"]
[Black "Evgeny_Ermakov1965"]
[Result "1-0"]
[WhiteElo "2752"]
[BlackElo "2554"]
[TimeControl "180+1"]
[EndTime "10:42:46 PDT"]
[Termination "Igor_Lysyj won by resignation"]

1. d4 {[%clk 0:02:59]} 1... d5 {[%clk 0:02:59.7]} 2. c4 {[%clk 0:02:59.1]} 2...
e6 {[%clk 0:02:58.9]} 3. Nf3 {[%clk 0:02:58.5]} 3... Nf6 {[%clk 0:02:59]} 4. g3
{[%clk 0:02:58.6]} 4... Be7 {[%clk 0:02:57.7]} 5. Bg2 {[%clk 0:02:58.5]} 5...
O-O {[%clk 0:02:57.9]} 6. O-O {[%clk 0:02:58.6]} 6... dxc4 {[%clk 0:02:57.6]} 7.
Ne5 {[%clk 0:02:58.6]} 7... Nbd7 {[%clk 0:02:54.3]} 8. Nxc4 {[%clk 0:02:57.9]}
8... c5 {[%clk 0:02:52.3]} 9. dxc5 {[%clk 0:02:55.6]} 9... Bxc5 {[%clk
0:02:49.7]} 10. Nc3 {[%clk 0:02:49.8]} 10... Nb6 {[%clk 0:02:46.1]} 11. Nxb6
{[%clk 0:02:40]} 11... Bxb6 {[%clk 0:02:47]} 12. Bf4 {[%clk 0:02:37.4]} 12...
Bd7 {[%clk 0:02:44.4]} 13. Bxb7 {[%clk 0:02:36]} 13... e5 {[%clk 0:02:41]} 14.
Bxe5 {[%clk 0:02:33.7]} 14... Bh3 {[%clk 0:02:39.6]} 15. Qxd8 {[%clk 0:02:26.6]}
15... Raxd8 {[%clk 0:02:36.9]} 16. Bxf6 {[%clk 0:02:26.7]} 16... gxf6 {[%clk
0:02:36.6]} 17. Rfd1 {[%clk 0:02:26.6]} 17... Bd4 {[%clk 0:02:34.3]} 18. Bg2
{[%clk 0:02:14.4]} 18... Bxg2 {[%clk 0:02:33.6]} 19. Kxg2 {[%clk 0:02:14.1]}
19... Bxc3 {[%clk 0:02:33.1]} 20. bxc3 {[%clk 0:02:11.8]} 20... Rc8 {[%clk
0:02:33.5]} 21. Rac1 {[%clk 0:02:10]} 21... Rc5 {[%clk 0:02:34.3]} 22. c4 {[%clk
0:02:06.9]} 22... Rfc8 {[%clk 0:02:34.2]} 23. Rd4 {[%clk 0:02:06.8]} 23... a5
{[%clk 0:02:33.9]} 24. Rc2 {[%clk 0:02:05.9]} 24... Kf8 {[%clk 0:02:34.2]} 25.
g4 {[%clk 0:02:04.8]} 25... Ke7 {[%clk 0:02:35.1]} 26. h3 {[%clk 0:02:03.9]}
26... f5 {[%clk 0:02:33.3]} 27. e3 {[%clk 0:02:02.1]} 27... fxg4 {[%clk
0:02:31.5]} 28. hxg4 {[%clk 0:02:02.3]} 28... h5 {[%clk 0:02:29.7]} 29. gxh5
{[%clk 0:02:00.4]} 29... Rxh5 {[%clk 0:02:30.6]} 30. Kf3 {[%clk 0:02:00.6]}
30... Ke6 {[%clk 0:02:28.6]} 31. Rb2 {[%clk 0:01:58.3]} 31... Rhc5 {[%clk
0:02:26.4]} 32. Rb6+ {[%clk 0:01:55.4]} 32... Ke7 {[%clk 0:02:26.5]} 33. Rb7+
{[%clk 0:01:55]} 33... Ke6 {[%clk 0:02:26.6]} 34. Re4+ {[%clk 0:01:52.9]} 34...
Kd6 {[%clk 0:02:27]} 35. Rxf7 {[%clk 0:01:44.6]} 35... Rxc4 {[%clk 0:02:27.1]}
36. Rxc4 {[%clk 0:01:39.2]} 36... Rxc4 {[%clk 0:02:28]} 37. Rf4 {[%clk
0:01:35.1]} 1-0

[Event "*** SCC Grand Prix: Titled Tuesday Blitz"]
[Site "Chess.com"]
[Date "2020.06.09"]
[Round "9"]
[White "Shivagami"]
[Black "harkerchess"]
[Result "1-0"]
[WhiteElo "2271"]
[BlackElo "2029"]
[TimeControl "180+1"]
[EndTime "10:42:47 PDT"]
[Termination "Shivagami won by checkmate"]

1. d4 {[%clk 0:03:00.9]} 1... d5 {[%clk 0:02:57.5]} 2. c4 {[%clk 0:03:01]} 2...
c6 {[%clk 0:02:57.8]} 3. Bf4 {[%clk 0:02:59.6]} 3... Nf6 {[%clk 0:02:53.5]} 4.
e3 {[%clk 0:02:58.4]} 4... e6 {[%clk 0:02:52]} 5. Nc3 {[%clk 0:02:57.6]} 5...
Bd6 {[%clk 0:02:51.5]} 6. Bg3 {[%clk 0:02:55.8]} 6... O-O {[%clk 0:02:48.4]} 7.
Nf3 {[%clk 0:02:55.1]} 7... b6 {[%clk 0:02:45.2]} 8. cxd5 {[%clk 0:02:53.8]}
8... exd5 {[%clk 0:02:44]} 9. Bd3 {[%clk 0:02:50.8]} 9... Bg4 {[%clk 0:02:43.1]}
10. h3 {[%clk 0:02:45.1]} 10... Bh5 {[%clk 0:02:41.2]} 11. Be5 {[%clk
0:02:43.3]} 11... Bxe5 {[%clk 0:02:38.6]} 12. dxe5 {[%clk 0:02:35.2]} 12... Bxf3
{[%clk 0:02:30.2]} 13. gxf3 {[%clk 0:02:31.9]} 13... Nfd7 {[%clk 0:02:31.1]} 14.
f4 {[%clk 0:02:31.6]} 14... f6 {[%clk 0:02:24.1]} 15. Qh5 {[%clk 0:02:12.1]}
15... g6 {[%clk 0:01:49.8]} 16. Bxg6 {[%clk 0:02:09.9]} 16... hxg6 {[%clk
0:01:50.7]} 17. Qxg6+ {[%clk 0:02:09.4]} 17... Kh8 {[%clk 0:01:51.6]} 18. Qh6+
{[%clk 0:02:09.4]} 18... Kg8 {[%clk 0:01:51.2]} 19. e6 {[%clk 0:01:49.3]} 19...
Re8 {[%clk 0:01:31.7]} 20. Rg1# {[%clk 0:01:48.2]} 1-0